[Event "EYCC Girls-U18 2019"]
[Site "Bratislava"]
[Date "2019.08.09"]
[Round "8.14"]
[White "Poliakova, Varvara"]
[Black "Ferkova, Dominika"]
[Result "1-0"]
[ECO "A03"]
[WhiteElo "1872"]
[BlackElo "2009"]
[Annotator "NA"]
[PlyCount "51"]
[EventDate "2019.08.02"]
[EventType "swiss"]
[EventCountry "SVK"]
[SourceTitle "playchess.com"]
[Source "ChessBase"]
[SourceQuality "1"]
[TimeControl "40/5400+30:1800+30"]

1. f4 {[%emt 0:00:00]} d5 {[%emt 0:00:00]} 2. Nf3 {[%emt 0:00:00]} g6 {[%emt 0:00:10]} 3. g3 {[%emt 0:00:30]} Bg7 {[%emt 0:00:16]} 4. Bg2 {[%emt 0:00:06]} c5 {[%emt 0:03:58]} 5. d3 {[%emt 0:00:24]} d4 {[%emt 0:06:48]} 6. O-O {[%emt 0:01:23]} Nh6 {[%emt 0:00:29]} 7. e4 {[%emt 0:00:44]} dxe3 {[%emt 0:01:37]} 8. Nc3 {[%emt 0:00:41]} Nf5 {[%emt 0:02:31]} 9. Ng5 {[%emt 0:04:51]} O-O {[%emt 0:06:19]} 10. Nge4 {[%emt 0:04:31]} Nc6 {[%emt 0:18:57]} 11. h3 {[%emt 0:02:18]} c4 {[%emt 0:08:33]} 12. g4 {[%emt 0:06:32]} cxd3 {[%emt 0:06:07]} 13. cxd3 {[%emt 0:01:57]} Nh4 {[%emt 0:11:21]} 14. Bh1 {[%emt 0:11:25]} e5 {[%emt 0:11:01]} 15. Bxe3 {[%emt 0:03:59]} Bh6 {[%emt 0:05:29]} 16. Nd5 {[%emt 0:07:16]} Kh8 {[%emt 0:02:55]} 17. Ndf6 {[%emt 0:03:54]} exf4 {[%emt 0:01:20]} 18. Qe1 {[%emt 0:11:56]} g5 {[%emt 0:02:59]} 19. Bxf4 {[%emt 0:01:17]} Ng6 {[%emt 0:00:21]} 20. Bxg5 {[%emt 0:02:49]} Bxg5 {[%emt 0:00:21]} 21. Nxg5 {[%emt 0:00:14]} h6 {[%emt 0:00:47]} 22. Nge4 {[%emt 0:01:40]} Qxd3 {[%emt 0:04:10]} 23. Rd1 {[%emt 0:02:03]} Qb5 {[%emt 0:03:23]} 24. Qd2 {[%emt 0:01:17]} Qb6+ {[%emt 0:00:30]} 25. Rf2 {[%emt 0:00:15]} Kg7 {[%emt 0:00:07]} 26. Nh5+ {[%emt 0:00:05]} 1-0

[Event "EYCC Girls-U18 2019"]
[Site "Bratislava"]
[Date "2019.08.09"]
[Round "8.15"]
[White "Hryshchenko, Kamila"]
[Black "Chrysogelou, Athanasia-Panagiota"]
[Result "1-0"]
[ECO "B90"]
[WhiteElo "2060"]
[BlackElo "1770"]
[Annotator "NA"]
[PlyCount "59"]
[EventDate "2019.08.02"]
[EventType "swiss"]
[EventCountry "SVK"]
[SourceTitle "playchess.com"]
[Source "ChessBase"]
[SourceQuality "1"]
[TimeControl "40/5400+30:1800+30"]

1. e4 {[%emt 0:00:00]} c5 {[%emt 0:00:00]} 2. Nf3 {[%emt 0:00:00]} d6 {[%emt 0:00:00]} 3. d4 cxd4 {[%emt 0:00:15]} 4. Nxd4 {[%emt 0:00:02]} Nf6 {[%emt 0:00:14]} 5. Nc3 {[%emt 0:00:08]} a6 {[%emt 0:00:20]} 6. f3 {[%emt 0:01:10]} e6 {[%emt 0:00:47]} 7. Be3 {[%emt 0:00:14]} b5 {[%emt 0:00:54]} 8. Qd2 {[%emt 0:00:14]} Nbd7 {[%emt 0:01:12]} 9. g4 {[%emt 0:01:06]} h6 {[%emt 0:00:26]} 10. h4 {[%emt 0:01:59]} Qc7 {[%emt 0:06:03]} 11. Rg1 {[%emt 0:02:43]} b4 {[%emt 0:07:54]} 12. Nd1 {[%emt 0:06:35]} e5 {[%emt 0:09:58]} 13. Nb3 {[%emt 0:02:42]} a5 {[%emt 0:02:53]} 14. g5 {[%emt 0:07:07]} hxg5 {[%emt 0:03:14]} 15. hxg5 {[%emt 0:00:05]} Ng8 {[%emt 0:02:55]} 16. g6 {[%emt 0:01:41]} fxg6 {[%emt 0:04:46]} 17. c3 {[%emt 0:06:11]} a4 {[%emt 0:09:37]} 18. Nc1 {[%emt 0:01:28]} bxc3 {[%emt 0:00:39]} 19. Nxc3 {[%emt 0:00:10]} Ngf6 {[%emt 0:00:25]} 20. Bb5 {[%emt 0:02:11]} a3 {[%emt 0:02:59]} 21. Nd3 {[%emt 0:10:45]} axb2 {[%emt 0:09:34]} 22. Qxb2 {[%emt 0:11:15]} Rb8 {[%emt 0:05:29]} 23. Rc1 {[%emt 0:08:46]} Qa5 {[%emt 0:03:32]} 24. Nb4 {[%emt 0:14:23]} Bb7 {[%emt 0:03:01]} 25. Kd1 {[%emt 0:07:37]} Kd8 {[%emt 0:03:56]} 26. a4 {[%emt 0:01:01]} Nb6 {[%emt 0:03:00]} 27. Qd2 {[%emt 0:01:56]} Nfd7 {[%emt 0:06:09]} 28. Ncd5 {[%emt 0:00:40]} Ra8 {[%emt 0:01:45]} 29. Bxb6+ {[%emt 0:00:36]} Nxb6 {[%emt 0:00:11]} 30. Qg5+ {[%emt 0:00:09]} 1-0

[Event "EYCC Girls-U18 2019"]
[Site "Bratislava"]
[Date "2019.08.09"]
[Round "8.16"]
[White "Kulpa, Zuzanna"]
[Black "Koubova, Anna Marie"]
[Result "1-0"]
[ECO "A50"]
[WhiteElo "1802"]
[BlackElo "2094"]
[Annotator "NA"]
[PlyCount "33"]
[EventDate "2019.08.02"]
[EventType "swiss"]
[EventCountry "SVK"]
[SourceTitle "playchess.com"]
[Source "ChessBase"]
[SourceQuality "1"]
[TimeControl "40/5400+30:1800+30"]

1. d4 {[%emt 0:00:00]} Nf6 {[%emt 0:00:00]} 2. c4 {[%emt 0:00:00]} g6 {[%emt 0:00:00]} 3. f3 {[%emt 0:00:00]} c5 {[%emt 0:06:30]} 4. d5 {[%emt 0:01:05]} d6 {[%emt 0:00:26]} 5. e4 {[%emt 0:00:21]} e6 {[%emt 0:01:20]} 6. Nc3 {[%emt 0:01:15]} exd5 {[%emt 0:08:53]} 7. cxd5 {[%emt 0:00:23]} a6 {[%emt 0:00:28]} 8. a4 {[%emt 0:01:13]} Bg7 {[%emt 0:00:15]} 9. Bg5 {[%emt 0:00:28]} Nbd7 {[%emt 0:03:23]} 10. Nh3 {[%emt 0:02:51]} O-O {[%emt 0:03:28]} 11. Qd2 {[%emt 0:01:23]} Ne5 {[%emt 0:02:35]} 12. Nf2 {[%emt 0:00:37]} Re8 {[%emt 0:02:55]} 13. Be2 {[%emt 0:00:40]} Qc7 {[%emt 0:01:33]} 14. O-O {[%emt 0:01:49]} Rb8 {[%emt 0:04:12]} 15. Rfc1 {[%emt 0:02:48]} Bd7 {[%emt 0:03:45]} 16. Bxf6 {[%emt 0:01:20]} Bxf6 {[%emt 0:08:01]} 17. f4 {[%emt 0:00:49]} 1-0

[Event "EYCC Girls-U18 2019"]
[Site "Bratislava"]
[Date "2019.08.09"]
[Round "8.17"]
[White "Represa Perez, Mireya"]
[Black "Buchta, Agnieszka"]
[Result "1/2-1/2"]
[ECO "B80"]
[WhiteElo "2017"]
[BlackElo "1818"]
[Annotator "NA"]
[PlyCount "121"]
[EventDate "2019.08.02"]
[EventType "swiss"]
[EventCountry "SVK"]
[SourceTitle "playchess.com"]
[Source "ChessBase"]
[SourceQuality "1"]
[TimeControl "40/5400+30:1800+30"]

1. e4 {[%emt 0:00:00]} c5 {[%emt 0:00:00]} 2. Nf3 {[%emt 0:00:00]} e6 {[%emt 0:00:00]} 3. d4 {[%emt 0:00:00]} cxd4 4. Nxd4 {[%emt 0:00:00]} Nf6 {[%emt 0:00:00]} 5. Nc3 {[%emt 0:00:00]} d6 {[%emt 0:00:16]} 6. g3 {[%emt 0:00:31]} Nc6 {[%emt 0:00:22]} 7. Bg2 {[%emt 0:00:16]} Bd7 {[%emt 0:00:40]} 8. O-O {[%emt 0:00:38]} a6 {[%emt 0:00:31]} 9. a4 {[%emt 0:00:07]} Be7 {[%emt 0:02:34]} 10. Nb3 {[%emt 0:01:39]} O-O {[%emt 0:00:52]} 11. f4 {[%emt 0:03:41]} Rc8 {[%emt 0:07:23]} 12. g4 {[%emt 0:03:19]} Nb4 {[%emt 0:14:22]} 13. g5 {[%emt 0:09:25]} Ne8 {[%emt 0:01:49]} 14. Be3 {[%emt 0:01:48]} Bc6 {[%emt 0:26:03]} 15. Qd2 {[%emt 0:10:11]} f5 {[%emt 0:08:36]} 16. exf5 {[%emt 0:07:14]} Bxg2 {[%emt 0:05:59]} 17. Qxg2 {[%emt 0:01:25]} exf5 {[%emt 0:03:14]} 18. Rf3 {[%emt 0:10:56]} d5 {[%emt 0:04:04]} 19. Rh3 {[%emt 0:02:36]} Nd6 {[%emt 0:03:24]} 20. Nc5 {[%emt 0:11:35]} Nc4 {[%emt 0:10:22]} 21. Ne6 {[%emt 0:06:42]} Nxe3 {[%emt 0:02:47]} 22. Rxe3 {[%emt 0:02:38]} Qb6 {[%emt 0:02:48]} 23. Rae1 {[%emt 0:04:47]} Bc5 {[%emt 0:02:41]} 24. Nxc5 {[%emt 0:03:27]} Qxc5 {[%emt 0:00:10]} 25. Kh1 {[%emt 0:02:03]} d4 {[%emt 0:01:28]} 26. Re5 {[%emt 0:00:47]} Qc6 {[%emt 0:01:07]} 27. Nd5 {[%emt 0:01:05]} Nxd5 {[%emt 0:00:25]} 28. Qxd5+ {[%emt 0:01:26]} Qxd5+ {[%emt 0:00:29]} 29. Rxd5 {[%emt 0:00:01]} Rxc2 {[%emt 0:00:43]} 30. Rxd4 Rxb2 {[%emt 0:00:43]} 31. Rd7 {[%emt 0:00:25]} Rc8 {[%emt 0:00:46]} 32. a5 {[%emt 0:00:52]} Kf8 {[%emt 0:00:39]} 33. Rd5 {[%emt 0:00:26]} Rb5 {[%emt 0:00:38]} 34. Rxb5 {[%emt 0:00:51]} axb5 {[%emt 0:00:01]} 35. Re5 {[%emt 0:00:26]} b4 {[%emt 0:00:58]} 36. Rxf5+ {[%emt 0:00:20]} Ke7 {[%emt 0:00:28]} 37. Rb5 {[%emt 0:00:11]} Rc7 {[%emt 0:00:35]} 38. Rxb4 {[%emt 0:00:09]} Ke6 {[%emt 0:00:30]} 39. Kg2 {[%emt 0:01:54]} Kf5 {[%emt 0:00:31]} 40. Kf3 {[%emt 0:00:00]} Rc3+ {[%emt 0:00:00]} 41. Kf2 {[%emt 0:03:19]} Rc5 {[%emt 0:15:19]} 42. Rxb7 {[%emt 0:03:39]} Rxa5 {[%emt 0:01:47]} 43. Rxg7 {[%emt 0:01:18]} Kxf4 {[%emt 0:02:15]} 44. h4 {[%emt 0:01:00]} h6 {[%emt 0:04:32]} 45. g6 {[%emt 0:23:56]} Kf5 {[%emt 0:03:47]} 46. h5 {[%emt 0:11:11]} Ke6 {[%emt 0:02:29]} 47. Rb7 {[%emt 0:02:44]} Rxh5 {[%emt 0:01:35]} 48. Rb6+ {[%emt 0:00:07]} Ke7 {[%emt 0:00:47]} 49. Rb7+ {[%emt 0:01:27]} Kf6 {[%emt 0:02:16]} 50. Rb6+ {[%emt 0:00:04]} Kg7 {[%emt 0:00:26]} 51. Kg3 {[%emt 0:00:03]} Rg5+ {[%emt 0:00:26]} 52. Kh4 {[%emt 0:00:02]} Rxg6 {[%emt 0:00:44]} 53. Rxg6+ {[%emt 0:00:04]} Kxg6 {[%emt 0:00:02]} 54. Kg4 {[%emt 0:00:08]} h5+ {[%emt 0:00:21]} 55. Kh4 {[%emt 0:00:05]} Kh6 {[%emt 0:00:10]} 56. Kh3 {[%emt 0:00:03]} Kg5 {[%emt 0:00:09]} 57. Kg3 {[%emt 0:00:04]} h4+ {[%emt 0:00:06]} 58. Kh3 {[%emt 0:00:04]} Kh5 {[%emt 0:00:04]} 59. Kh2 {[%emt 0:00:05]} Kg4 {[%emt 0:00:14]} 60. Kg2 {[%emt 0:00:06]} h3+ {[%emt 0:00:10]} 61. Kh2 {[%emt 0:00:07]} 1/2-1/2

[Event "EYCC Girls-U18 2019"]
[Site "Bratislava"]
[Date "2019.08.09"]
[Round "8.18"]
[White "Duson, Robin"]
[Black "Golub, Nikolina"]
[Result "1/2-1/2"]
[ECO "D35"]
[WhiteElo "1936"]
[BlackElo "1856"]
[Annotator "NA"]
[PlyCount "49"]
[EventDate "2019.08.02"]
[EventType "swiss"]
[EventCountry "SVK"]
[SourceTitle "playchess.com"]
[Source "ChessBase"]
[SourceQuality "1"]
[TimeControl "40/5400+30:1800+30"]

1. d4 {[%emt 0:00:00]} d5 {[%emt 0:00:00]} 2. c4 {[%emt 0:00:00]} e6 {[%emt 0:00:00]} 3. Nc3 {[%emt 0:00:03]} Nf6 {[%emt 0:00:00]} 4. cxd5 exd5 {[%emt 0:00:00]} 5. Bg5 {[%emt 0:00:28]} c6 {[%emt 0:00:00]} 6. e3 {[%emt 0:00:33]} Be7 {[%emt 0:01:38]} 7. Bd3 {[%emt 0:00:55]} h6 {[%emt 0:00:05]} 8. Bh4 {[%emt 0:01:35]} O-O {[%emt 0:00:12]} 9. Qc2 {[%emt 0:01:13]} Re8 {[%emt 0:01:05]} 10. Bg3 {[%emt 0:03:46]} Bd6 {[%emt 0:08:37]} 11. Bxd6 {[%emt 0:05:52]} Qxd6 {[%emt 0:01:00]} 12. Nf3 {[%emt 0:01:12]} Nbd7 {[%emt 0:02:08]} 13. O-O {[%emt 0:02:43]} a6 {[%emt 0:04:59]} 14. a4 {[%emt 0:07:00]} Qe7 {[%emt 0:05:34]} 15. Nd2 {[%emt 0:01:41]} c5 {[%emt 0:07:49]} 16. dxc5 {[%emt 0:09:42]} Nxc5 {[%emt 0:03:16]} 17. Be2 {[%emt 0:05:05]} Nce4 {[%emt 0:07:22]} 18. Nb3 {[%emt 0:04:10]} Bf5 {[%emt 0:05:33]} 19. Nd4 {[%emt 0:02:01]} Bh7 {[%emt 0:03:03]} 20. Bd3 {[%emt 0:03:42]} Rac8 {[%emt 0:01:59]} 21. Rfd1 {[%emt 0:03:07]} Nxc3 {[%emt 0:05:18]} 22. Bxh7+ {[%emt 0:00:59]} Nxh7 {[%emt 0:00:02]} 23. bxc3 {[%emt 0:00:33]} Nf6 {[%emt 0:01:13]} 24. Qb3 {[%emt 0:05:18]} Rc7 {[%emt 0:07:07]} 25. Ne2 {[%emt 0:05:03]} 1/2-1/2

[Event "EYCC Girls-U18 2019"]
[Site "Bratislava"]
[Date "2019.08.09"]
[Round "8.19"]
[White "Belluire, Beatrice"]
[Black "Verbin, Valentina"]
[Result "1/2-1/2"]
[ECO "C11"]
[WhiteElo "1929"]
[BlackElo "1958"]
[Annotator "NA"]
[PlyCount "66"]
[EventDate "2019.08.02"]
[EventType "swiss"]
[EventCountry "SVK"]
[SourceTitle "playchess.com"]
[Source "ChessBase"]
[SourceQuality "1"]
[TimeControl "40/5400+30:1800+30"]

1. e4 {[%emt 0:00:00]} e6 {[%emt 0:00:00]} 2. d4 {[%emt 0:00:00]} d5 {[%emt 0:00:00]} 3. Nc3 {[%emt 0:00:00]} Nf6 {[%emt 0:00:00]} 4. e5 {[%emt 0:00:00]} Nfd7 {[%emt 0:00:00]} 5. Nce2 {[%emt 0:03:31]} c5 {[%emt 0:00:20]} 6. c3 {[%emt 0:00:05]} Nc6 {[%emt 0:00:27]} 7. f4 {[%emt 0:00:15]} a6 {[%emt 0:04:07]} 8. Nf3 {[%emt 0:02:38]} b5 {[%emt 0:00:17]} 9. a4 {[%emt 0:04:42]} b4 {[%emt 0:03:32]} 10. f5 {[%emt 0:06:50]} Be7 {[%emt 0:09:22]} 11. Nf4 {[%emt 0:03:07]} Ndb8 {[%emt 0:14:13]} 12. Nh5 {[%emt 0:08:56]} g6 {[%emt 0:12:01]} 13. f6 {[%emt 0:12:04]} Bf8 {[%emt 0:01:54]} 14. Ng7+ {[%emt 0:02:42]} Kd7 {[%emt 0:00:08]} 15. Ng5 {[%emt 0:02:56]} Bxg7 {[%emt 0:05:19]} 16. Nxf7 {[%emt 0:06:36]} Qf8 {[%emt 0:02:47]} 17. fxg7 {[%emt 0:00:18]} Qxg7 {[%emt 0:00:18]} 18. Nxh8 {[%emt 0:00:06]} Qxh8 {[%emt 0:00:02]} 19. Qf3 {[%emt 0:01:50]} cxd4 {[%emt 0:02:29]} 20. Qf7+ {[%emt 0:05:06]} Ne7 {[%emt 0:00:57]} 21. cxd4 {[%emt 0:00:59]} Nbc6 {[%emt 0:02:25]} 22. Bg5 {[%emt 0:09:39]} Bb7 {[%emt 0:01:22]} 23. Bxe7 {[%emt 0:00:39]} Nxe7 {[%emt 0:00:02]} 24. Rc1 {[%emt 0:01:32]} Qd8 {[%emt 0:00:13]} 25. Be2 {[%emt 0:03:30]} Qb6 {[%emt 0:02:25]} 26. Bg4 {[%emt 0:00:39]} Rc8 {[%emt 0:02:24]} 27. Ke2 {[%emt 0:07:28]} h5 {[%emt 0:01:33]} 28. Bh3 {[%emt 0:03:13]} g5 {[%emt 0:02:38]} 29. Qxh5 {[%emt 0:06:24]} Qxd4 {[%emt 0:01:04]} 30. Qxg5 {[%emt 0:01:41]} Qxb2+ {[%emt 0:00:15]} 31. Qd2 {[%emt 0:01:05]} Qxe5+ {[%emt 0:00:22]} 32. Qe3 {[%emt 0:01:19]} Qb2+ {[%emt 0:01:25]} 33. Qd2 {[%emt 0:00:19]} Qe5+ {[%emt 0:00:05]} 1/2-1/2

[Event "EYCC Girls-U18 2019"]
[Site "Bratislava"]
[Date "2019.08.09"]
[Round "8.20"]
[White "Kocyigit, Buse Naz"]
[Black "Koridze, Lile"]
[Result "0-1"]
[ECO "B66"]
[WhiteElo "2045"]
[BlackElo "1950"]
[Annotator "NA"]
[PlyCount "46"]
[EventDate "2019.08.02"]
[EventType "swiss"]
[EventCountry "SVK"]
[SourceTitle "playchess.com"]
[Source "ChessBase"]
[SourceQuality "1"]
[TimeControl "40/5400+30:1800+30"]

1. e4 {[%emt 0:00:00]} c5 {[%emt 0:00:01]} 2. Nf3 {[%emt 0:00:00]} d6 {[%emt 0:00:04]} 3. d4 cxd4 {[%emt 0:00:05]} 4. Nxd4 {[%emt 0:00:00]} Nf6 {[%emt 0:00:08]} 5. Nc3 {[%emt 0:00:00]} Nc6 {[%emt 0:00:03]} 6. Bg5 {[%emt 0:00:00]} e6 {[%emt 0:00:07]} 7. Qd2 {[%emt 0:00:10]} a6 {[%emt 0:00:03]} 8. Nxc6 {[%emt 0:02:21]} bxc6 {[%emt 0:00:06]} 9. O-O-O {[%emt 0:04:23]} Qb6 {[%emt 0:03:58]} 10. Na4 {[%emt 0:16:39]} Qc7 {[%emt 0:01:15]} 11. Bxf6 {[%emt 0:11:09]} gxf6 {[%emt 0:00:08]} 12. Qf4 {[%emt 0:07:05]} Be7 {[%emt 0:01:44]} 13. Bd3 {[%emt 0:03:52]} Rb8 {[%emt 0:02:17]} 14. h4 {[%emt 0:15:33]} Qa5 {[%emt 0:03:24]} 15. b3 {[%emt 0:01:02]} Rg8 {[%emt 0:06:13]} 16. Qh6 {[%emt 0:10:28]} d5 {[%emt 0:13:44]} 17. Rdg1 {[%emt 0:03:15]} Ba3+ {[%emt 0:01:10]} 18. Kd1 {[%emt 0:00:16]} dxe4 {[%emt 0:02:15]} 19. Qxh7 {[%emt 0:03:13]} Rg4 {[%emt 0:03:34]} 20. f3 {[%emt 0:02:02]} e3 {[%emt 0:00:03]} 21. c3 {[%emt 0:02:02]} Rxa4 {[%emt 0:00:04]} 22. Kc2 {[%emt 0:00:01]} Bb2 {[%emt 0:03:19]} 23. Kxb2 {[%emt 0:00:39]} Rxa2+ {[%emt 0:00:05]} 0-1

[Event "EYCC Girls-U18 2019"]
[Site "Bratislava"]
[Date "2019.08.09"]
[Round "8.21"]
[White "Urh, Zala"]
[Black "Ucekajova, Veronika"]
[Result "1-0"]
[ECO "E73"]
[WhiteElo "2072"]
[BlackElo "1836"]
[Annotator "NA"]
[PlyCount "63"]
[EventDate "2019.08.02"]
[EventType "swiss"]
[EventCountry "SVK"]
[SourceTitle "playchess.com"]
[Source "ChessBase"]
[SourceQuality "1"]
[TimeControl "40/5400+30:1800+30"]

1. d4 {[%emt 0:00:00]} Nf6 {[%emt 0:00:00]} 2. c4 {[%emt 0:00:00]} g6 {[%emt 0:00:00]} 3. Nc3 {[%emt 0:00:00]} Bg7 {[%emt 0:00:00]} 4. e4 {[%emt 0:00:00]} d6 {[%emt 0:00:00]} 5. Be2 {[%emt 0:00:32]} O-O {[%emt 0:04:30]} 6. Be3 {[%emt 0:00:12]} Nbd7 {[%emt 0:01:15]} 7. Nf3 {[%emt 0:03:35]} c5 {[%emt 0:03:11]} 8. d5 {[%emt 0:00:51]} b5 {[%emt 0:04:49]} 9. cxb5 {[%emt 0:01:13]} a6 {[%emt 0:00:43]} 10. Nd2 {[%emt 0:05:11]} axb5 {[%emt 0:01:34]} 11. Nxb5 {[%emt 0:00:55]} Ba6 {[%emt 0:02:02]} 12. O-O {[%emt 0:01:26]} Qa5 {[%emt 0:09:06]} 13. a4 {[%emt 0:01:55]} Bxb5 {[%emt 0:06:40]} 14. Bxb5 {[%emt 0:01:01]} Ne5 {[%emt 0:00:53]} 15. h3 {[%emt 0:04:30]} Rfb8 {[%emt 0:04:08]} 16. f4 {[%emt 0:02:40]} Ned7 {[%emt 0:00:14]} 17. Nc4 {[%emt 0:02:47]} Qc7 {[%emt 0:07:10]} 18. Qc2 {[%emt 0:02:34]} Nb6 {[%emt 0:00:46]} 19. Rad1 {[%emt 0:07:54]} Nfd7 {[%emt 0:11:17]} 20. b3 {[%emt 0:03:05]} Nxc4 {[%emt 0:03:07]} 21. bxc4 {[%emt 0:04:21]} Nb6 {[%emt 0:00:18]} 22. Rd3 {[%emt 0:05:30]} Ra7 {[%emt 0:03:35]} 23. Ra3 {[%emt 0:05:47]} Rba8 {[%emt 0:06:09]} 24. Bd2 {[%emt 0:04:14]} Bd4+ {[%emt 0:00:59]} 25. Kh1 {[%emt 0:00:06]} Nd7 {[%emt 0:02:26]} 26. Rb1 {[%emt 0:02:25]} Nb6 {[%emt 0:02:58]} 27. a5 {[%emt 0:02:06]} Nd7 {[%emt 0:00:12]} 28. a6 {[%emt 0:08:54]} Kg7 {[%emt 0:04:38]} 29. Ba5 {[%emt 0:04:15]} Qc8 {[%emt 0:00:32]} 30. Bc6 {[%emt 0:04:29]} Rb8 {[%emt 0:00:20]} 31. Rxb8 {[%emt 0:02:04]} Nxb8 {[%emt 0:00:15]} 32. Bb7 {[%emt 0:00:06]} 1-0

[Event "EYCC Girls-U18 2019"]
[Site "Bratislava"]
[Date "2019.08.09"]
[Round "8.22"]
[White "Maksimovic, Masa"]
[Black "Olde, Grete"]
[Result "0-1"]
[ECO "C96"]
[WhiteElo "2102"]
[BlackElo "1955"]
[Annotator "NA"]
[PlyCount "110"]
[EventDate "2019.08.02"]
[EventType "swiss"]
[EventCountry "SVK"]
[SourceTitle "playchess.com"]
[Source "ChessBase"]
[SourceQuality "1"]
[TimeControl "40/5400+30:1800+30"]

1. e4 {[%emt 0:00:00]} e5 {[%emt 0:00:00]} 2. Nf3 {[%emt 0:00:00]} Nc6 {[%emt 0:00:00]} 3. Bb5 {[%emt 0:00:00]} a6 {[%emt 0:00:00]} 4. Ba4 {[%emt 0:00:00]} Nf6 {[%emt 0:00:00]} 5. O-O {[%emt 0:00:00]} Be7 {[%emt 0:00:01]} 6. Re1 {[%emt 0:00:04]} b5 {[%emt 0:00:07]} 7. Bb3 {[%emt 0:00:04]} d6 {[%emt 0:00:06]} 8. c3 {[%emt 0:00:04]} O-O {[%emt 0:00:11]} 9. h3 {[%emt 0:00:07]} Na5 {[%emt 0:00:10]} 10. Bc2 {[%emt 0:00:05]} c5 {[%emt 0:00:09]} 11. d4 {[%emt 0:00:05]} Nd7 {[%emt 0:00:25]} 12. Nbd2 {[%emt 0:03:19]} exd4 {[%emt 0:02:41]} 13. cxd4 {[%emt 0:00:12]} Nc6 {[%emt 0:00:28]} 14. Nf1 {[%emt 0:05:52]} Bf6 {[%emt 0:04:37]} 15. d5 {[%emt 0:14:29]} Nce5 {[%emt 0:14:36]} 16. Ne3 {[%emt 0:15:51]} Ng6 17. Ng4 Be7 {[%emt 0:05:09]} 18. a4 {[%emt 0:05:31]} Rb8 {[%emt 0:05:14]} 19. axb5 {[%emt 0:03:23]} axb5 {[%emt 0:01:39]} 20. Rb1 {[%emt 0:03:42]} Nb6 {[%emt 0:03:48]} 21. b4 {[%emt 0:06:09]} Bxg4 {[%emt 0:06:05]} 22. hxg4 {[%emt 0:00:06]} c4 {[%emt 0:01:56]} 23. Nd4 {[%emt 0:00:21]} Qd7 {[%emt 0:07:13]} 24. Nc6 {[%emt 0:01:41]} Ra8 {[%emt 0:01:41]} 25. Nxe7+ {[%emt 0:00:29]} Qxe7 {[%emt 0:01:06]} 26. g3 {[%emt 0:04:15]} Na4 {[%emt 0:02:35]} 27. Bd2 {[%emt 0:03:23]} Ne5 {[%emt 0:04:13]} 28. f4 {[%emt 0:01:25]} c3 {[%emt 0:01:22]} 29. Bc1 {[%emt 0:02:34]} Nc4 {[%emt 0:01:11]} 30. Qf3 {[%emt 0:07:04]} Rfc8 {[%emt 0:05:03]} 31. Re2 {[%emt 0:04:31]} Nab6 {[%emt 0:07:07]} 32. Qd3 {[%emt 0:02:47]} g6 {[%emt 0:03:10]} 33. Kg2 {[%emt 0:01:36]} Qf6 {[%emt 0:05:11]} 34. g5 {[%emt 0:01:18]} Qe7 {[%emt 0:01:23]} 35. Qd4 {[%emt 0:05:27]} Qb7 {[%emt 0:04:54]} 36. Kf3 {[%emt 0:01:47]} Rc7 {[%emt 0:04:03]} 37. Rh2 {[%emt 0:00:52]} Rac8 {[%emt 0:01:39]} 38. Bd3 {[%emt 0:01:03]} Nd7 {[%emt 0:01:51]} 39. Re2 {[%emt 0:03:44]} Re8 {[%emt 0:03:02]} 40. Kf2 {[%emt 0:00:00]} Ndb6 {[%emt 0:00:00]} 41. Ra1 {[%emt 0:15:15]} Qc8 {[%emt 0:10:51]} 42. Kg2 {[%emt 0:04:52]} Rce7 {[%emt 0:04:55]} 43. Raa2 {[%emt 0:01:20]} Rc7 {[%emt 0:04:47]} 44. Kf3 {[%emt 0:02:07]} Nd7 {[%emt 0:02:10]} 45. Rh2 {[%emt 0:01:08]} Nf8 {[%emt 0:03:09]} 46. Rac2 {[%emt 0:03:44]} Nd7 {[%emt 0:03:49]} 47. Kf2 {[%emt 0:03:50]} f6 {[%emt 0:02:29]} 48. gxf6 {[%emt 0:00:32]} Rf8 {[%emt 0:00:07]} 49. Kg1 {[%emt 0:01:55]} Nxf6 {[%emt 0:00:52]} 50. Rhe2 {[%emt 0:03:23]} Qg4 {[%emt 0:02:03]} 51. Qf2 {[%emt 0:00:36]} Nh5 {[%emt 0:01:02]} 52. Kh2 {[%emt 0:00:09]} Ne5 {[%emt 0:00:44]} 53. Bxb5 {[%emt 0:03:07]} Rcf7 {[%emt 0:01:07]} 54. Qg2 {[%emt 0:01:04]} Nf3+ {[%emt 0:00:21]} 55. Kh1 {[%emt 0:00:04]} Nxg3+ {[%emt 0:00:06]} 0-1

[Event "EYCC Girls-U18 2019"]
[Site "Bratislava"]
[Date "2019.08.09"]
[Round "8.23"]
[White "Ciocan, Maria-Alexandra"]
[Black "Tonso, Liina"]
[Result "1-0"]
[ECO "B20"]
[WhiteElo "2062"]
[BlackElo "1711"]
[Annotator "NA"]
[PlyCount "55"]
[EventDate "2019.08.02"]
[EventType "swiss"]
[EventCountry "SVK"]
[SourceTitle "playchess.com"]
[Source "ChessBase"]
[SourceQuality "1"]
[TimeControl "40/5400+30:1800+30"]

1. e4 {[%emt 0:00:00]} c5 {[%emt 0:00:00]} 2. Be2 {[%emt 0:00:00]} e6 {[%emt 0:00:06]} 3. f4 {[%emt 0:00:00]} Nc6 {[%emt 0:00:51]} 4. Nf3 {[%emt 0:00:00]} d5 {[%emt 0:01:33]} 5. d3 {[%emt 0:00:40]} Nf6 {[%emt 0:01:37]} 6. e5 {[%emt 0:02:51]} Nd7 {[%emt 0:02:03]} 7. c3 {[%emt 0:01:20]} b5 {[%emt 0:09:17]} 8. Na3 {[%emt 0:01:55]} Qb6 {[%emt 0:03:46]} 9. Nc2 {[%emt 0:04:29]} a5 {[%emt 0:04:47]} 10. Be3 {[%emt 0:03:29]} b4 {[%emt 0:07:56]} 11. O-O {[%emt 0:01:46]} Be7 {[%emt 0:05:04]} 12. Bf2 {[%emt 0:03:12]} a4 {[%emt 0:08:13]} 13. d4 {[%emt 0:04:52]} bxc3 {[%emt 0:12:50]} 14. bxc3 {[%emt 0:00:08]} c4 {[%emt 0:03:26]} 15. f5 {[%emt 0:03:42]} Qa5 {[%emt 0:03:50]} 16. fxe6 {[%emt 0:02:58]} fxe6 {[%emt 0:00:14]} 17. Qd2 {[%emt 0:00:09]} Nf8 {[%emt 0:03:18]} 18. Bh4 {[%emt 0:03:03]} h6 {[%emt 0:06:00]} 19. Bxe7 {[%emt 0:00:52]} Nxe7 {[%emt 0:00:25]} 20. Nh4 {[%emt 0:00:40]} Bd7 {[%emt 0:03:03]} 21. Rab1 {[%emt 0:02:35]} O-O-O {[%emt 0:03:40]} 22. Rf7 {[%emt 0:06:08]} Nf5 {[%emt 0:04:26]} 23. Nxf5 {[%emt 0:02:02]} exf5 {[%emt 0:00:06]} 24. Ne3 {[%emt 0:01:54]} g6 {[%emt 0:02:45]} 25. Qb2 {[%emt 0:00:16]} Qa7 {[%emt 0:03:12]} 26. Nxd5 {[%emt 0:00:13]} Ne6 {[%emt 0:00:58]} 27. Bxc4 {[%emt 0:00:52]} Ng5 {[%emt 0:01:21]} 28. Ba6+ {[%emt 0:00:16]} 1-0